{"text_format":"1","workbook":"xlsx","n_sheets":4,"sheets":["Instrucciones","Relación de gastos","Relación de ingresos","Gastos e ingresos"],"not_rendered":{"charts":0,"images":2,"macros":1,"external_links":0,"defined_names":8,"comments":0,"pivot_tables":0},"unopened":[],"bounds":{"document_bytes":16777216,"sheet_cells":100000,"rows_first":2000,"rows_last":500,"rows_between":2000,"halvings":0,"cell_chars":16384,"cell_head_chars":4096},"cells_cut":0,"cells_raw":0,"read":"whole","date_system":"1900"}

{"sheet":"Instrucciones","index":0,"n_rows":21,"n_cols":9,"rows_kept":21,"cut":false,"hidden":false,"merged":[[2,8,2,11],[11,1,11,17],[16,1,16,17],[18,1,18,17],[19,1,19,3],[10,1,10,17],[3,2,4,17],[5,2,5,17],[7,2,7,17],[9,1,9,17]]}
[]
[]
[null,null,null,null,null,null,null,null,"Memoria justificativa económica Ac"]
[null,null,"SUBVENCIONES DEL AYUNTAMIENTO DE BARCELONA PARA EL FORTALECIMIENTO DE LA ECONOMÍA SOCIAL Y SOLIDARIA Y POR LA INTERCOOPERACIÓN EN LA ESTRATEGIA #ESSBCN2030 - ENFOTIM L'ESS 2025"]
[]
[null,null,"Aspectos relevantes relacionados con la justificación"]
[]
[null,null,"INSTRUCCIONES"]
[]
[null,"1. Cumplimentar sólo las celdas en blanco de la pestaña: \"Relación de gastos\" , \"Relación de ingresos\" y \"gastos e ingresos\" con los datos económicos del proyecto"]
[null,"1.1 Cumplimentar el cuadro Datos básicos de la pestaña \"Relación de gastos\""]
[null,"1.2 Cumplimentar el cuadro Gastos del proyecto/actividad/servicio subvencionado de la pestaña \"Relación de gastos\""]
[null,"1.3 Tener en cuenta los cuadros \"notas\" y \"obligaciones de la modalidad\" de la pestaña \"Relación de gastos\""]
[null,"1.4 Cumplimentar el cuadro Ingresos del proyecto/actividad/servicio subvencionado de la pestaña \"Relación de ingresos\""]
[null,"1.5 Tener en cuenta los cuadros \"notas\" de la pestaña \"Relación de ingresos\""]
[]
[null,"2. Imprimir las hojas de las 3 pestañas en formato pdf"]
[]
[null,"3. Es necesario que registre la documentación telemáticamente dentro de la convocatoria específica y utilice el código de expediente que sale a la publicación de la resolución provisional y/o definitiva"]
[null,"Enlace para realizar el trámite"]
[null,"Enlace para encontrar código expediente resolución provisional"]

{"sheet":"Relación de gastos","index":1,"n_rows":128,"n_cols":10,"rows_kept":128,"cut":false,"hidden":false,"merged":[[119,0,119,10],[122,0,122,10],[124,0,124,10],[22,0,22,10],[111,0,111,10],[110,0,110,10],[114,0,114,10],[115,0,115,10],[106,0,106,10],[108,0,108,10],[109,0,109,10],[48,0,48,10],[49,9,49,10],[50,9,50,10],[51,9,51,10],[52,9,52,10],[42,0,42,10],[43,9,43,10],[46,9,46,10],[47,0,47,6],[47,9,47,10],[57,9,57,10],[58,9,58,10],[59,9,59,10],[72,0,72,10],[20,9,20,10],[21,0,21,6],[21,9,21,10],[53,0,53,6],[53,9,53,10],[54,0,54,10],[55,9,55,10],[56,9,56,10],[66,0,66,10],[60,0,60,10],[23,9,23,10],[24,9,24,10],[25,9,25,10],[26,9,26,10],[27,0,27,6],[27,9,27,10],[28,0,28,10],[29,9,29,10],[30,9,30,10],[59,0,59,6],[16,0,16,10],[17,9,17,10],[18,9,18,10],[19,9,19,10],[39,9,39,10],[40,0,40,6],[1,0,1,10],[5,0,5,1],[3,2,3,3],[4,2,4,3],[5,2,5,3],[3,0,3,1],[3,4,3,6],[4,4,4,6],[5,4,5,6],[3,7,3,8],[4,7,4,8],[5,7,5,8],[4,0,4,1],[7,1,8,1],[7,0,8,0],[6,0,6,4],[7,2,8,2],[8,9,8,10],[7,9,7,10],[7,3,7,4],[15,9,15,10],[15,0,15,6],[11,9,11,10],[12,9,12,10],[13,9,13,10],[10,0,10,10],[14,9,14,10],[9,0,9,10],[103,9,103,10],[40,9,40,10],[75,9,75,10],[76,9,76,10],[61,9,61,10],[62,9,62,10],[63,9,63,10],[64,9,64,10],[65,0,65,6],[65,9,65,10],[91,9,91,10],[92,9,92,10],[84,0,84,10],[85,9,85,10],[86,9,86,10],[87,9,87,10],[88,9,88,10],[89,0,89,6],[89,9,89,10],[90,0,90,10],[77,9,77,10],[78,0,78,10],[93,9,93,10],[102,0,102,6],[73,9,73,10],[71,0,71,6],[71,9,71,10],[41,0,41,10],[101,9,101,10],[79,9,79,10],[80,9,80,10],[81,9,81,10],[82,9,82,10],[83,0,83,6],[83,9,83,10],[74,9,74,10],[67,9,67,10],[68,9,68,10],[69,9,69,10],[70,9,70,10],[98,9,98,10],[99,9,99,10],[95,0,95,6],[95,9,95,10],[96,0,96,10],[77,0,77,6],[100,9,100,10],[94,9,94,10],[103,0,103,6],[118,0,118,10],[120,0,120,10],[121,0,121,10],[123,0,123,10],[125,0,125,10],[126,0,126,10],[127,0,127,10],[31,9,31,10],[32,9,32,10],[33,0,33,6],[33,9,33,10],[113,0,113,10],[116,0,116,10],[117,0,117,10],[34,0,34,10],[35,9,35,10],[36,9,36,10],[37,9,37,10],[38,9,38,10],[39,0,39,6],[102,9,102,10],[97,9,97,10],[101,0,101,6]]}
[]
["Relación clasificada de todos los gastos realizados para la ejecución de la actividad subvencionada"]
["Datos básicos"]
["Persona jurídica beneficiaria:        ",null,null,null,"Importe del coste total del proyecto:",null,null,null,null,"euros"]
["Código de subvención:",null,null,null,"Importe de la subvención otorgada:",null,null,null,null,"euros"]
["Nombre del proyecto subvencionado:",null,null,null,"Periodo de ejecución del proyecto subvencionado:",null,null,null,null,"a"]
["Gastos del proyecto/actividad/servicio subvencionado (*)"]
["Núm. de orden (0)","Número de documento: justificantes gasto personal (1), factura o recibo/ticket(2)","Concepto de la factura / \ndocumento probatorio equivalente","Emisor/a de la factura",null,"Fecha de emisión","Importe total de la factura","Importe imputable (dedicado) al proyecto (3)","Importe imputable a la subvención municipal (4)","Observaciones"]
[null,null,null,"NIF","Nom","dd/mm/aaaa","euros","euros","euros"]
["GASTOS DIRECTOS (Aquellos que se identifican directamente con el proyecto)"]
["D1.  Nóminas y seguridad social (régimen general o socios/as cooperativistas en régimen de autónomos) del personal propio vinculado al proyecto subvencionable (máximo 25% importe subvención)"]
["D.1.1"]
[]
[]
[]
["Subtotal D.1",null,null,null,null,null,null,{"$f":"SUM(H12:H15)","v":0},{"$f":"SUM(I12:I15)","v":0}]
["D2. Nóminas y seguridad social de estudiantes en prácticas (con un límite del 80% de su sueldo bruto correspondiente al periodo de la ejecución de la subvención) - excepto si la seguridad social está bonificada"]
["D.2.1"]
[]
[]
[]
["Subtotal D.2",null,null,null,null,null,null,{"$f":"SUM(H18:H21)","v":0},{"$f":"SUM(I18:I21)","v":0}]
["D3. Trabajos realizados por profesionales y empresas externas directamente vinculadas al proyecto, (incluye gastos del estudiante en prácticas: tasas y otros gastos relacionados con el convenio de prácticas)"]
[]
[]
[]
[]
["Subtotal D.3",null,null,null,null,null,null,{"$f":"SUM(H24:H27)","v":0},{"$f":"SUM(I24:I27)","v":0}]
["D4. Cuotas de inscripción, alquiler de sistemas de software y hardware y mantenimiento"]
[]
[]
[]
[]
["Subtotal D.4",null,null,null,null,null,null,{"$f":"SUM(H30:H33)","v":0},{"$f":"SUM(I30:I33)","v":0}]
["D5. Gastos de matriculación en acciones formativas externas con una duración mínima de 150 horas y/o un coste mínimo de 600€ para cada participante"]
[]
[]
[]
[]
["Subtotal D.5",null,null,null,null,null,null,{"$f":"SUM(H36:H39)","v":0},{"$f":"SUM(I36:I39)","v":0}]
["TOTAL GASTOS DIRECTOS",null,null,null,null,null,null,{"$f":"H16+H22+H28+H34+H40","v":0},{"$f":"I16+I22+I28+I34+I40","v":0}]
["GASTOS INDIRECTOS (no se pueden asignar directamente al proyecto sin utilizar algún % de asignación) (máximo 10% de subvención)"]
["I.1 Personal propio vinculado indirectamente (nóminas y seguridad social)"]
[]
[]
[]
[]
["Subtotal I1",null,null,null,null,null,null,{"$f":"SUM(H44:H47)","v":0},{"$f":"SUM(I44:I47)","v":0}]
["I.2 Seguros"]
[]
[]
[]
[]
["Subtotal I2",null,null,null,null,null,null,{"$f":"SUM(H50:H53)","v":0},{"$f":"SUM(I50:I53)","v":0}]
["I.3  Amortitzación"]
[]
[]
[]
[]
["Subtotal I3",null,null,null,null,null,null,{"$f":"SUM(H56:H59)","v":0},{"$f":"SUM(I56:I59)","v":0}]
["I.4 Alquiler de bienes inmuebles"]
[]
[]
[]
[]
["Subtotal I4",null,null,null,null,null,null,{"$f":"SUM(H62:H65)","v":0},{"$f":"SUM(I62:I65)","v":0}]
["I.5 Adquisición de materiales y bienes consumibles parcialmente imputables al proyecto"]
[]
[]
[]
[]
["Subtotal I5",null,null,null,null,null,null,{"$f":"SUM(H68:H71)","v":0},{"$f":"SUM(I68:I71)","v":0}]
["I.6 Mantenimiento de edificios y/o instalaciones"]
[]
[]
[]
[]
["Subtotal I6",null,null,null,null,null,null,{"$f":"SUM(H74:H77)","v":0},{"$f":"SUM(I74:I77)","v":0}]
["I.7 Comunicaciones (teléfono, correos, conexión a internet)"]
[]
[]
[]
[]
["Subtotal I7",null,null,null,null,null,null,{"$f":"SUM(H80:H83)","v":0},{"$f":"SUM(I80:I83)","v":0}]
["I.8 Gastos financieros"]
[]
[]
[]
[]
["Subtotal I8",null,null,null,null,null,null,{"$f":"SUM(H86:H89)","v":0},{"$f":"SUM(I86:I89)","v":0}]
["I.9 Suministros"]
[]
[]
[]
[]
["Subtotal I9",null,null,null,null,null,null,{"$f":"SUM(H92:H95)","v":0},{"$f":"SUM(I92:I95)","v":0}]
["I.10 Trabajo realizado por otras empresas, parcialmente imputables al proyecto (limpieza, seguridad...)"]
[]
[]
[]
[]
["Subtotal I10",null,null,null,null,null,null,{"$f":"SUM(H98:H101)","v":0},{"$f":"SUM(I98:I101)","v":0}]
["TOTAL GASTOS INDIRECTOS",null,null,null,null,null,null,{"$f":"+H48+H54+H60+H66+H72+H78+H84+H90+H96+H102","v":0},{"$f":"+I48+I54+I60+I66+I72+I78+I84+I90+I96+I102","v":0}]
["TOTAL GASTOS PROYECTO (DIRECTOS + INDIRECTOS)",null,null,null,null,null,null,{"$f":"H41+H103","v":0},{"$f":"I41+I103","v":0}]
[]
["(*) Notas"]
["Se deben relacionar todos los gastos del proyecto/actividad/servicio subvencionado. En el caso de que el número de filas de cada concepto sea insuficiente se puede insertar líneas dentro del mismo concepto, teniendo en cuenta que el sumatorio total incluya las nuevas líneas insertadas."]
["(0) El número de orden debe ser correlativo empezando por D.1.1, D.1.2, D.1.3, D.2.4, etc."]
["(1) Respecto a los gastos de recursos humanos, puede ser subvencionable el coste total salarial mensual, que corresponde a la suma de la retribución bruta que aparece en la nómina del trabajador/a más la cuota de la empresa en la Seg. Social. Los gastos de personal se justifican con la nómina del trabajador/a acompañada de los correspondientes RLC y RNT (anteriores TC1 y TC2) de la TMV y el modelo 111 del IRPF."]
["(2) En el caso de que el documento justificativo del resto de gastos, no sea una factura, sino otro documento probatorio equivalente, como un recibo o justificante (como por dietas o transporte público), indicarlo en la columna \"observaciones\"."]
["(3) En el cas que un justificant inclogui conceptes que no tenen relació amb el projecte/activitat/servei per al qual s'ha atorgat la subvenció, aquí només s'ha d'indicar la part que realment s'ha dedicat al projecte.En el caso de que un justificante incluya conceptos que no tienen relación con el proyecto/actividad/servicio para el que se ha otorgado la subvención, aquí sólo se debe indicar la parte que realmente se ha dedicado al proyecto."]
["(4) En esta columna se debe indicar el importe total o parcial de la factura que se imputa a la subvención recibida del Ayuntamiento de Barcelona. El total imputado, en esta columna, debe ser igual al importe de la subvención recibida."]
[]
["Modalidad Ac: Digitalización: Acciones vinculadas a la implementación de procesos de digitalización para el fortalecimiento de las empresas y organizaciones de la ESS, orientadas al desarrollo de los objetivos de la Estrategia #ESSBCN2030 y del PIESS 2024-2027ç"]
["1. La cuantía de la subvención otorgada no superará el 80% del gasto total del proyecto a subvencionar."]
["2. El importe máximo de subvención para la modalidad Ac del ámbito temático A. Fortalecimiento: Creación y consolidación es 9.000€."]
["3. En el caso de que la solicitud presentada sobrepase el importe máximo, se considerará como importe solicitado el máximo de lo establecido en la convocatoria."]
["4. Se limita con un máximo del 25% el importe de la subvención para gastos de personal propio que participa de forma directa y debidamente al proyecto."]
["5. No es posible subvencionar la creación/actualización de páginas web, ni la dinamización de redes sociales, en ningún caso."]
["6. En caso de realizarse gastos superiores a los importes establecidos por los contratos menores de servicios, suministros y obras de la Ley de Contratos del Sector Público 9/2017, se deberán incorporar tres presupuestos solicitados y argumentar el motivo de la adjudicación en el caso de no ser la propuesta más ventajosa económicamente."]
["7. En ningún caso se considerarán gastos subvencionables:\n> Los impuestos indirectos cuando sean susceptibles de recuperación o compensación.\n> Los gastos de inversión, incluidas las adquisiciones de bienes muebles.\n> Los gastos realizados con fecha anterior al inicio del proyecto y fecha posterior a la finalización del proyecto.\n> Otros gastos que se indiquen en la convocatoria."]
["8. Son imputables en esta modalidad los gastos indirectos, detallados en el apartado 13.3. de las bases reguladoras; con un máximo del 10% del importe de la subvención."]
["9. No se pueden imputar en ningún caso gastos de inversión, correspondientes a partidas del inmovilizado, con el dinero de la subvención otorgada en esta convocatoria específica. Sí se pueden imputar a la parte de contribución, siempre que sean gastos dentro del periodo ejecutivo del proyecto subvencionado y acreditables tal como se describe en la convocatoria."]
["10. La retribución de las personas contratadas en el marco del proyecto subvencionado no puede ser inferior al Salario Mínimo Interprofesional (SMI), ni a la estipulada en el correspondiente convenio o marco normativo de referencia (punto 7 de las bases 2025: requisitos de los proyectos)."]
["11. Los materiales producidos de difusión, estudios, informes o materiales didácticos utilizados, etc. en el caso de tratarse de gasto elegible de la subvención, deberán tener licencia Creative Commons -Compartir Igual- (share a like) y no podrá tener la condición –Sin Obras Derivadas- (no derivate Works)."]
["12. Los proyectos subvencionados deben formar actividades de interés público o social, las cuales deben ser gratuitas para las personas participantes o en ningún caso el precio debe suponer un obstáculo para su participación, buscando otras formas de acceso para personas con dificultades económicas. En el caso de que haya algún tipo de lucro, tendrá que revertir en las propias actividades subvencionadas."]
["13. El Ayuntamiento de Barcelona y sus entidades municipales en ningún caso subvencionarán el mismo proyecto, ejecutado durante el mismo periodo, por ningún otro procedimiento de concesión que no sea el regulado por las bases reguladoras."]
["14. El/la beneficiario/a no podrá alterar en ningún caso el destino de las subvenciones concedidas."]

{"sheet":"Relación de ingresos","index":2,"n_rows":73,"n_cols":10,"rows_kept":73,"cut":false,"hidden":false,"merged":[[9,6,10,9],[2,0,2,9],[4,2,4,3],[5,0,5,1],[5,2,5,3],[6,0,6,1],[6,2,6,3],[7,0,7,1],[8,0,8,3],[9,0,10,0],[9,1,10,1],[9,2,9,3],[22,0,22,3],[22,6,22,9],[11,0,11,9],[12,6,12,9],[13,6,13,9],[15,6,15,9],[16,0,16,3],[16,6,16,9],[17,0,17,9],[18,6,18,9],[19,6,19,9],[20,6,20,9],[21,6,21,9],[24,6,24,9],[25,6,25,9],[26,6,26,9],[27,6,27,9],[28,0,28,3],[28,6,28,9],[30,6,30,9],[31,6,31,9],[32,6,32,9],[33,6,33,9],[34,0,34,3],[34,6,34,9],[48,6,48,9],[36,6,36,9],[38,6,38,9],[39,6,39,9],[40,0,40,3],[40,6,40,9],[42,6,42,9],[43,6,43,9],[44,6,44,9],[45,6,45,9],[46,0,46,3],[46,6,46,9],[62,6,62,9],[49,6,49,9],[50,6,50,9],[51,6,51,9],[52,0,52,3],[52,6,52,9],[54,6,54,9],[55,6,55,9],[58,0,58,3],[58,6,58,9],[60,6,60,9],[61,6,61,9],[68,0,68,4],[68,6,68,9],[63,6,63,9],[64,6,64,9],[65,6,65,9],[66,6,66,9],[67,0,67,3],[67,6,67,9]]}
[]
[]
["Detalle de todos los ingresos obtenidos y aportaciones del mismo beneficiario para la ejecución de la actividad subvencionada"]
["Datos básicos"]
["Nombre de la persona física/jurídica beneficiaria:        ",null,{"$f":"IF('Relación de gastos'!C4:D4<>\"\",'Relación de gastos'!C4:D4,\"\")","v":""},null,"Importe del coste total del proyecto:",null,null,{"$f":"IF(+'Relación de gastos'!H4=\"\",\"\",+'Relación de gastos'!H4)","v":""},"euros"]
["Código de subvención:",null,{"$f":"IF('Relación de gastos'!C5:D5<>\"\",'Relación de gastos'!C5:D5,\"\")","v":""},null,"Importe de la subvención otorgada:",null,null,{"$f":"IF(+'Relación de gastos'!H5=\"\",\"\",+'Relación de gastos'!H5)","v":""},"euros"]
["Nombre del proyecto subvencionado:",null,{"$f":"IF('Relación de gastos'!C6:D6<>\"\",'Relación de gastos'!C6:D6,\"\")","v":""},null,"Periodo de ejecución del proyecto subvencionado:",null,null,{"$f":"IF(+'Relación de gastos'!H6=\"\",\"\",+'Relación de gastos'!H6)","v":""},"a",{"$f":"IF(+'Relación de gastos'!K6=\"\",\"\",+'Relación de gastos'!K6)","v":""}]
[]
["Ingresos del proyecto/actividad/servicio subvencionado (*)"]
["núm. de orden (0)","Concepto del ingreso","Emisor/a del ingreso",null,"Fecha de cobro\n(dd/mm/aaaa)","Importe","Observaciones"]
[null,null,"NIF","Nombre","(1)","euros"]
["A. Subvención municipal "]
["A1."]
[]
[]
[]
[null,null,null,null,"Subtotal A",{"$f":"SUM(F13:F16)","v":0}]
["B. Subvenciones de otras administraciones"]
["B1."]
[]
[]
[]
[null,null,null,null,"Subtotal B",{"$f":"SUM(F19:F22)","v":0}]
["C. Subvenciones de entes privados"]
[]
[]
[]
[]
[null,null,null,null,"Subtotal C",{"$f":"SUM(F25:F28)","v":0}]
["D. Recursos propios de la organización aplicados al proyecto"]
[]
[]
[]
[]
[null,null,null,null,"Subtotal D",{"$f":"SUM(F31:F34)","v":0}]
["E. Taquillaje"]
[]
[]
[]
[]
[null,null,null,null,"Subtotal E",{"$f":"SUM(F37:F40)","v":0}]
["F. Cuotas de inscripción"]
[]
[]
[]
[]
[null,null,null,null,"Subtotal F",{"$f":"SUM(F43:F46)","v":0}]
["G. Venta de Productos"]
[]
[]
[]
[]
[null,null,null,null,"Subtotal G",{"$f":"SUM(F49:F52)","v":0}]
["H. Publicidad y/o Esponsorización"]
[]
[]
[]
[]
[null,null,null,null,"Subtotal H",{"$f":"SUM(F55:F58)","v":0}]
["I. Otros ingresos"]
[]
[]
[]
[]
[]
[]
[]
[null,null,null,null,"Subtotal I",{"$f":"SUM(F61:F67)","v":0}]
["TOTAL INGRESOS",null,null,null,null,{"$f":"+F17+F23+F29+F35+F41+F47+F53+F59+F68","v":0}]
[]
[null,"(*) Notas"]
[null,"(0) El número de orden debe ser correlativo empezando por el número A1, A2, A3, B4, etc."]
[null,"(1) En caso que el ingreso esté pendiente de cobro, indicar \"P. Cobro\"."]

{"sheet":"Gastos e ingresos","index":3,"n_rows":43,"n_cols":11,"rows_kept":43,"cut":false,"hidden":false,"merged":[[4,5,4,6],[5,0,5,1],[5,2,5,3],[5,5,5,6],[9,6,9,7],[6,0,6,1],[6,2,6,3],[9,0,9,1],[4,0,4,1],[4,2,4,3],[10,0,11,1],[24,6,24,7],[25,6,25,7],[25,8,25,9],[19,2,20,2],[19,3,20,3],[10,8,11,8],[10,9,11,9],[10,2,11,2],[10,3,11,3],[10,6,11,7],[19,0,20,1],[13,1,14,1],[13,2,14,2],[13,3,14,3],[13,4,14,4],[40,0,40,10],[41,0,41,10],[42,0,42,10],[28,5,28,8],[29,6,29,8],[35,0,35,10],[36,0,36,10],[37,0,37,10],[38,0,38,10],[39,0,39,10]]}
[]
[]
["Estado de los gastos realizados y de los ingresos obtenidos para la ejecución de la actividad subvencionada(*)"]
["Datos básicos"]
["Nombre de la persona física/jurídica beneficiaria:",null,{"$f":"IF('Relación de gastos'!C4:D4<>\"\",'Relación de gastos'!C4:D4,\"\")","v":""},null,null,"Importe del coste total del proyecto:",null,{"$f":"'Relación de ingresos'!H5","v":""},"euros"]
["Código de subvención:",null,{"$f":"IF('Relación de gastos'!C5:D5<>\"\",'Relación de gastos'!C5:D5,\"\")","v":""},null,null,"Importe de la subvención otorgada:",null,{"$f":"'Relación de ingresos'!H6","v":""},"euros"]
["Nombre del proyecto subvencionado:",null,{"$f":"IF('Relación de gastos'!C6:D6<>\"\",'Relación de gastos'!C6:D6,\"\")","v":""},null,null,"Periodo de ejecución del proyecto subvencionado:",null,null,{"$f":"'Relación de ingresos'!H7","v":""},"a",{"$f":"'Relación de ingresos'!J7","v":""}]
[]
["SUBVENCIONES PARA EL FORTALECIMIENTO DE LA ECONOMÍA SOCIAL Y SOLIDARIA Y LA INTERCOOPERACIÓN 2025"]
["GASTOS PREVISTOS",null,"importe en euros",null,null,null,"INGRESOS PREVISTOS",null,"importe en euros"]
["Gastos directos \n(aquellas que se identifican directamente con el proyecto)",null,"Previsión inicial o reformulada ya aprobada (1)","Gastos realizados (2)","Diferencia\n",null,"Ingresos previstos",null,"Previsión inicial (1)","Ingresos obtenidos (3)"]
[null,null,null,null,"(2-1)"]
["Ac","D1.  Nóminas y seguridad social (régimen general o socios/as cooperativistas en régimen de autónomos) del personal propio vinculado al proyecto subvencionable (máximo 25% importe subvención)",null,{"$f":"'Relación de gastos'!H16","v":0},{"$f":"+C13-D13","v":0},null,"A.","Subvención municipal (importe solicitado a la instancia/otorgado)",null,{"$f":"'Relación de ingresos'!F17","v":0}]
[null,"D2. Nóminas y seguridad social de estudiantes en prácticas (con un límite del 80% de su sueldo bruto correspondiente al periodo de la ejecución de la subvención) - excepto si la seguridad social está bonificada",null,{"$f":"'Relación de gastos'!H22","v":0},{"$f":"+C14-D14","v":0},null,"B.","Subvenciones de otras administraciones",null,{"$f":"'Relación de ingresos'!F23","v":0}]
[null,null,null,null,null,null,"C.","Subvenciones de ente privados",null,{"$f":"'Relación de ingresos'!F29","v":0}]
[null,"D3. Trabajos realizados por profesionales y empresas externas directamente vinculadas al proyecto, (incluye gastos del estudiante en prácticas: tasas y otros gastos relacionados con el convenio de prácticas)",null,{"$f":"'Relación de gastos'!H28","v":0},{"$f":"+C16-D16","v":0},null,"D.","Recursos propios de la organización aplicados al proyecto",null,{"$f":"'Relación de ingresos'!F35","v":0}]
[null,"D4. Cuotas de inscripción, alquiler de sistemas de software y hardware y mantenimiento",null,{"$f":"'Relación de gastos'!H34","v":0},{"$f":"+C17-D17","v":0},null,"E.","Taquillaje",null,{"$f":"'Relación de ingresos'!F41","v":0}]
[null,"D5. Gastos de matriculación en acciones formativas externas con una duración mínima de 150 horas y/o un coste mínimo de 600€ para cada participante",null,{"$f":"'Relación de gastos'!H40","v":0},{"$f":"+C18-D18","v":0},null,"F.","Cuotas de inscripción",null,{"$f":"'Relación de ingresos'!F47","v":0}]
[null,"Total Gastos Directos",{"$f":"SUM(C13:C18)","v":0},{"$f":"SUM(D13:D18)","v":0},{"$f":"SUM(E13:E18)","v":0},null,"G.","Venta de Productos",null,{"$f":"'Relación de ingresos'!F53","v":0}]
["Gastos indirectos (se podrán asignar al proyecto haciendo sevir un porcentaje de asignación)",null,"Previsión inicial o reformulada ya aprobada (1)","Gastos realizados (2)","Diferencia\n",null,"H","Publicidad y/o Esponsorización",null,{"$f":"'Relación de ingresos'!F59","v":0}]
[null,null,null,null,"(2-1)",null,"I.","Otros ingresos",null,{"$f":"'Relación de ingresos'!F68","v":0}]
[null,"I.1 Personal propio vinculado indirectamente (nóminas y seguridad social)",null,{"$f":"'Relación de gastos'!H48","v":0},{"$f":"+C22-D22","v":0},null,null,"Otros ingresos",{"$f":"SUM(I13:I21)","v":0},{"$f":"SUM(J13:J21)","v":0}]
[null,"I.2 Seguros",null,{"$f":"'Relación de gastos'!H54","v":0},0]
[null,"I.3 Amortización",null,{"$f":"'Relación de gastos'!H60","v":0},0]
[null,"I.4 Alquiler de bienes inmuebles",null,{"$f":"'Relación de gastos'!H66","v":0},0,null,"Ingresos menos gastos",null,{"$f":"+I22-C33","v":0},{"$f":"+J22-D33","v":0}]
[null,"I.5 Adquisición de materiales y bienes consumibles parcialmente imputables al proyecto",null,{"$f":"'Relación de gastos'!H72","v":0},0,null,"Desviación de Gastos (4)",null,"Desviación de ingresos (4)"]
[null,"I.6 Mantenimiento de edificios y/o instalaciones",null,{"$f":"'Relación de gastos'!H78","v":0},0,null,"Importe"," % ","Importe","%"]
[null,"I.7 Comunicaciones (teléfono, correos, conexión a internet)",null,{"$f":"'Relación de gastos'!H84","v":0},0,null,{"$f":"D33-C33","v":0},{"$f":"D33/C33","v":{"$error":"#DIV/0!"}},{"$f":"J22-I22","v":0},{"$f":"J22/I22","v":{"$error":"#DIV/0!"}}]
[null,"I.8 Gastos financieros",null,{"$f":"'Relación de gastos'!H90","v":0},0,"% subvencionado inicialmente o después de reformulación (5)",null,null,null,{"$f":"I13/I22","v":{"$error":"#DIV/0!"}}]
[null,"I.9 Suministros",null,{"$f":"'Relación de gastos'!H96","v":0},0,null,"% subvencionado tras justificación(6)",null,null,{"$f":"+J13/J22","v":{"$error":"#DIV/0!"}}]
[null,"I.10 Trabajo realizado por otras empresas, parcialmente imputables al proyecto subvencionable (limpieza, seguridad...)",null,{"$f":"'Relación de gastos'!H102","v":0},0]
[null,"Total Gastos Indirectos Máx. 10% subv)",{"$f":"SUM(C22:C31)","v":0},{"$f":"SUM(D22:D31)","v":0},{"$f":"SUM(E22:E31)","v":0}]
[null,"Total Gastos",{"$f":"C19+C32","v":0},{"$f":"D19+D32","v":0},{"$f":"E19+E32","v":0}]
[]
[" (*) Notas"]
["Las columnas sombreadas en color se irán rellenando automáticamente a partir de los datos introducidos en las pestañas relación de gastos y relación de ingresos. Por lo tanto, no imprima esta hoja hasta haber rellenado los demás."]
["(1) Previsión inicial o reformulación ya aprobada= Se debe indicar la previsión inicial de gastos y de ingresos según lo que se indicó en el proyecto original en el \"plan de viabilidad económica del proyecto - presupuesto general\". En caso de que ya se haya aprobado una reformulación, se debe indicar las cantidades reformuladas."]
["(2) Gastos reales = Coste real total del proyecto subvencionado. Esta columna se actualiza con los datos de la pestaña relación de gastos, no hay que rellenar los datos, sólo habrá que revisar que son correctos."]
["(2-1) Esta columna está vinculada y se actualiza con los datos de las dos columnas anteriores, no hay que rellenar ningún dato."]
["(3) Ingresos reales =Total de ingresos obtenidos para la realización del proyecto subvencionado. Esta columna se actualiza con los datos de la pestaña relación de ingresos, no hay que rellenar los datos, sólo habrá que revisar que son correctos."]
["(4)  Desviación: En el caso de los gastos, la desviación es la diferencia entre gastos reales y la previsión inicial de gastos; y en el caso de ingresos, la diferencia entre los ingresos reales y la previsión inicial de ingresos."]
["(5) % financiación municipal inicial o después de reformulación = porcentaje que supone la subvención municipal (A) respecto del total de ingresos del proyecto."]
["(6) % financiación municipal tras justificación  = porcentaje que supone la subvención municipal (A) respecto del total de ingresos del proyecto subvencionado. En caso de existir una desviación siempre se debe motivar."]